bitfinex/quotes_SOLUSD_20241125
["timestamp","ask_amount","ask_price","bid_price","bid_amount"]
[1732565565499,27.27899312,240.65,240.55,8.69879312]
[1732565565692,8.69879312,240.63,240.55,8.69879312]
[1732565566114,0.12549,240.62,240.55,8.69879312]
[1732565566718,23.902374,240.64,240.57,8.69879312]
[1732565567016,0.12549,240.63,240.57,8.69879312]
[1732565567211,8.82428312,240.63,240.55,8.69879312]
[1732565567396,0.12549,240.61,240.55,8.69879312]
[1732565568209,23.776884,240.62,240.57,8.69879312]
[1732565568419,18.78255321,240.67,240.59,8.69879312]
[1732565568617,20.02905321,240.67,240.59,8.69879312]
[1732565568825,20.02905321,240.67,240.57,8.69879312]
[1732565568826,8.69879312,240.65,240.57,8.69879312]
[1732565569108,0.12549,240.64,240.57,8.69879312]
[1732565569697,24.027864,240.64,240.57,8.69879312]
[1732565570413,23.776884,240.66,240.59,8.69879312]
[1732565570617,0.12549,240.65,240.59,8.69879312]
[1732565570926,23.776884,240.64,240.57,12.85549312]
[1732565571297,0.12549,240.65,240.57,12.85549312]
[1732565571495,23.776884,240.64,240.57,12.85549312]
[1732565572600,10.08376009,240.67,240.59,8.69879312]
[1732565573221,10.08376009,240.67,240.63,8.69879312]
[1732565573521,10.08376009,240.67,240.58,15.7346]
[1732565573522,10.08376009,240.67,240.61,28.69879312]
[1732565573695,18.78255321,240.67,240.59,8.69879312]
[1732565573896,8.69879312,240.65,240.57,12.85549312]
[1732565574521,9.94539312,240.65,240.57,8.69879312]
[1732565574716,23.902374,240.64,240.57,12.85549312]
[1732565575433,18.78255321,240.67,240.59,8.69879312]
[1732565575736,23.902374,240.66,240.59,8.69879312]
[1732565576510,23.902374,240.66,240.55,10.3927]
[1732565576511,10.08376009,240.67,240.61,8.69879312]
[1732565576929,10.08376009,240.67,240.63,8.69879312]
[1732565577427,10.08376009,240.67,240.65,8.69879312]
[1732565578539,1.246,240.76,240.68,20.0]
[1732565578747,1.246,240.76,240.69,8.69879312]
[1732565578923,8.69879312,240.77,240.69,8.69879312]
[1732565579239,8.69879312,240.77,240.68,20.0]
[1732565579240,8.69879312,240.79,240.71,8.69879312]
[1732565579841,0.12549,240.78,240.71,8.69879312]
[1732565580211,8.69879312,240.81,240.74,20.0]
[1732565580429,8.69879312,240.83,240.75,8.69879312]
[1732565580614,1.2456,240.84,240.77,8.69879312]
[1732565580811,0.12549,240.83,240.77,8.69879312]
[1732565581213,9.94439312,240.85,240.77,8.69879312]
[1732565582018,8.69879312,240.87,240.77,8.69879312]
[1732565582236,29.65028784,240.88,240.85,8.69879312]
[1732565582442,29.65028784,240.88,240.76,23.2931]
[1732565582443,12.18627578,240.88,240.87,8.69879312]
[1732565583023,0.4764682,240.93,240.9,20.0]
[1732565583227,0.4764682,240.93,240.92,8.69879312]
[1732565584329,0.4764682,240.93,240.92,33.89562815]
[1732565584527,0.4764682,240.93,240.92,38.04632815]
[1732565587243,0.4764682,240.93,240.92,48.04632815]
[1732565587449,12.18035325,241.02,240.96,20.0]
[1732565587657,12.18035325,241.02,241.01,13.89562815]
[1732565588852,12.18035325,241.02,241.01,18.04482815]
[1732565589027,13.89562815,241.16,241.02,6.3839]
[1732565589350,27.31385471,241.16,241.07,13.89562815]
[1732565589549,0.12549,241.13,241.05,33.89562815]
[1732565589752,0.12549,241.11,241.06,20.0]
[1732565590636,0.25098,241.11,241.06,20.0]
[1732565591645,0.25098,241.09,241.06,20.0]
[1732565592431,0.25098,241.07,240.96,4.15]
[1732565592637,13.89562815,241.11,241.04,13.89562815]
[1732565592841,13.89562815,241.11,241.02,13.89562815]
[1732565593080,14.14660815,241.09,241.02,13.89562815]
[1732565593232,0.12549,241.06,241.0,13.89562815]
[1732565593443,13.89562815,241.03,240.96,13.89562815]
[1732565594246,13.89562815,241.05,240.98,13.89562815]
[1732565594750,1.37009,241.04,240.96,13.89562815]
[1732565594957,15.14012815,241.05,240.98,13.89562815]
[1732565595145,0.12549,241.06,240.98,13.89562815]
[1732565595453,13.89562815,241.09,241.0,13.89562815]
[1732565595836,0.12549,241.09,241.02,13.89562815]
[1732565596042,14.02111815,241.09,241.02,13.89562815]
[1732565596225,14.02111815,241.09,240.92,14.5275]
[1732565596226,13.89562815,241.13,241.07,20.0]
[1732565596422,1.2441,241.14,241.07,20.0]
[1732565596647,13.89562815,241.15,241.07,20.0]
[1732565596850,12.17422656,241.16,241.13,13.89562815]
[1732565597056,13.89562815,241.14,241.07,20.0]
[1732565597248,13.89562815,241.14,241.08,20.0]
[1732565597944,26.06985471,241.16,241.1,20.0]
[1732565598252,0.12549,241.15,241.1,20.0]
[1732565598444,0.12549,241.15,241.12,20.0]
[1732565599054,12.17422656,241.16,241.12,20.0]
[1732565599630,0.4764682,241.17,241.12,20.0]
[1732565599837,0.4764682,241.17,241.16,13.89562815]
[1732565601052,0.4764682,241.17,241.16,18.04222815]
[1732565601851,0.4764682,241.17,241.14,18.04242815]
[1732565602159,0.4764682,241.17,241.15,20.0]
[1732565602456,15.61599635,241.17,241.1,13.89562815]
[1732565602637,0.12549,241.14,241.08,13.89562815]
[1732565602843,0.12549,241.14,241.06,13.89562815]
[1732565603044,13.89562815,241.13,241.06,13.89562815]
[1732565603249,0.12549,241.15,241.08,13.89562815]
[1732565603771,14.02111815,241.16,241.1,13.89562815]
[1732565603772,0.25098,241.16,241.1,13.89562815]
[1732565604054,0.4764682,241.17,241.12,13.89562815]
[1732565604252,0.4764682,241.17,241.14,13.89562815]
[1732565605258,0.4764682,241.17,241.16,13.89562815]
[1732565606452,0.4764682,241.17,241.12,13.89562815]
[1732565607029,0.4764682,241.17,241.12,18.04282815]
[1732565607240,0.4764682,241.17,241.03,6.9757]
[1732565607241,0.25098,241.16,241.1,13.89562815]
[1732565607438,0.25098,241.16,241.03,6.9757]
[1732565607439,0.25098,241.16,241.08,13.89562815]
[1732565607631,14.37209635,241.17,241.1,13.89562815]
[1732565607958,0.4764682,241.17,241.1,13.89562815]
[1732565608254,30.0,241.16,241.08,13.89562815]
[1732565608559,0.4764682,241.17,241.09,10.0]
[1732565608765,0.4764682,241.17,241.13,43.776884]
[1732565609232,0.4764682,241.17,241.15,20.0]
[1732565609556,0.4764682,241.17,241.16,37.67251215]
[1732565609729,0.4764682,241.17,241.16,13.89562815]
[1732565610647,0.4764682,241.17,241.16,37.67251215]
[1732565610851,0.4764682,241.17,241.16,51.6936303]
[1732565611036,0.4764682,241.17,241.16,44.66300215]
[1732565611230,1.36859,241.33,241.2,20.0]
[1732565611455,1.36859,241.33,241.25,13.89562815]
[1732565611659,1.2431,241.33,241.25,13.89562815]
[1732565611861,13.89562815,241.32,241.25,13.89562815]
[1732565612163,0.12549,241.31,241.25,13.89562815]
[1732565612368,0.12549,241.31,241.2,20.0]
[1732565612369,15.13882815,241.3,241.23,13.89562815]
[1732565612560,0.12549,241.27,241.19,13.89562815]
[1732565613162,0.12549,241.25,241.17,13.89562815]
[1732565614138,30.0,241.24,241.19,13.89562815]
[1732565614360,30.0,241.24,241.13,14.5149]
[1732565614361,30.0,241.24,241.21,13.89562815]
[1732565615063,30.0,241.24,241.23,13.89562815]
[1732565616367,1.2432,241.31,241.23,13.89562815]
[1732565616574,1.2432,241.31,241.23,18.04092815]
[1732565616942,1.2432,241.31,241.25,13.89562815]
[1732565617241,1.2432,241.31,241.21,13.89562815]
[1732565617242,14.14660815,241.3,241.21,13.89562815]
[1732565617438,0.25098,241.3,241.23,13.89562815]
[1732565617842,22.9718,241.36,241.29,13.89562815]
[1732565618042,30.0,241.3,241.29,13.89562815]
[1732565619266,30.0,241.3,241.27,13.89562815]
[1732565619841,1.2431,241.33,241.27,13.89562815]
[1732565620476,13.89562815,241.32,241.25,13.89562815]
[1732565621168,30.0,241.29,241.23,13.89562815]
[1732565622960,31.2433,241.29,241.23,13.89562815]
[1732565623165,13.89562815,241.28,241.19,13.89562815]
[1732565623346,30.0,241.27,241.19,13.89562815]
[1732565623546,30.0,241.27,241.21,13.89562815]
[1732565624339,31.2434,241.27,241.19,13.89562815]
[1732565624547,13.89562815,241.24,241.15,13.89562815]
[1732565624758,43.89562815,241.22,241.13,13.89562815]
[1732565625664,43.89562815,241.22,241.15,13.89562815]
[1732565626169,1.2437,241.21,241.15,13.89562815]
[1732565626372,30.0,241.2,241.13,13.89562815]
[1732565629183,31.2438,241.2,241.13,13.89562815]
[1732565629372,45.13942815,241.2,241.11,13.89562815]
[1732565630060,45.13942815,241.2,241.09,13.89562815]
[1732565630061,13.89562815,241.18,241.09,13.89562815]
[1732565630263,30.0,241.17,241.09,13.89562815]
[1732565631070,13.89562815,241.16,241.08,4.1479]
[1732565631263,30.0,241.15,241.09,13.89562815]
[1732565631569,30.0,241.15,241.11,13.89562815]
[1732565631760,30.0,241.15,241.13,13.89562815]
[1732565632079,30.0,241.15,241.13,18.04272815]
[1732565633380,1.2436,241.23,241.13,18.04272815]
[1732565633554,1.2436,241.23,241.15,13.89562815]
[1732565633755,13.89562815,241.22,241.13,18.04272815]
[1732565635060,1.2436,241.23,241.15,13.89562815]
[1732565635778,13.89562815,241.22,241.13,13.89562815]
[1732565635979,13.89562815,241.2,241.11,13.89562815]
[1732565636188,13.89562815,241.16,241.07,18.04362815]
[1732565636478,13.89562815,241.18,241.09,13.89562815]
[1732565637270,1.2439,241.17,241.09,18.04332815]
[1732565638153,30.0,241.14,241.12,20.0]
[1732565638461,30.0,241.14,241.13,13.89562815]
[1732565640077,13.89562815,241.22,241.13,13.89562815]
[1732565640078,1.2437,241.21,241.13,13.89562815]
[1732565640276,15.13902815,241.26,241.17,13.89562815]
[1732565640487,30.0,241.18,241.17,13.89562815]
[1732565640963,15.13902815,241.26,241.17,13.89562815]
[1732565641579,13.89562815,241.24,241.15,13.89562815]
[1732565642159,15.13912815,241.24,241.16,4.1466]
[1732565642992,15.13912815,241.24,241.17,13.89562815]
[1732565643493,13.89562815,241.26,241.17,18.04202815]
[1732565644061,13.89562815,241.24,241.15,13.89562815]
[1732565644469,13.89562815,241.22,241.15,20.0]
[1732565644664,30.0,241.17,241.09,13.89562815]
[1732565645274,13.89562815,241.16,241.07,18.04372815]
[1732565645465,1.244,241.15,241.07,18.04372815]
[1732565645780,30.0,241.14,241.07,13.89562815]
[1732565646193,30.0,241.14,241.07,18.04372815]
[1732565646491,43.89562815,241.14,241.05,13.89562815]
[1732565646786,13.89562815,241.11,241.03,13.89562815]
[1732565647363,30.0,241.09,241.03,13.89562815]
[1732565647692,43.89562815,241.09,240.99,13.89562815]
[1732565648680,13.89562815,241.07,240.99,13.89562815]
[1732565648886,13.89562815,241.07,240.97,4.1498]
[1732565648887,30.0,241.06,240.97,18.04542815]
[1732565649809,31.2445,241.06,240.97,18.04542815]
[1732565649991,30.0,241.06,240.99,13.89562815]
[1732565650168,30.0,241.06,241.02,13.89562815]
[1732565650885,30.0,241.06,241.0,13.89562815]
[1732565651573,30.0,241.06,241.04,13.89562815]
[1732565651975,1.2443,241.1,241.02,18.04452815]
[1732565652592,1.2443,241.1,241.04,13.89562815]
[1732565653381,13.89562815,241.14,241.04,13.89562815]
[1732565653799,13.89562815,241.14,241.04,18.04412815]
[1732565653996,1.244,241.15,241.08,13.89562815]
[1732565654173,13.89562815,241.14,241.06,13.89562815]
[1732565654493,13.89562815,241.12,241.04,13.89562815]
[1732565655088,4.354,241.15,240.89,17.7628]
[1732565655089,0.25098,241.05,240.89,17.7628]
[1732565655390,13.89562815,240.95,240.86,13.89562815]
[1732565655593,13.89562815,240.89,240.82,13.89562815]
[1732565655893,15.14092815,240.91,240.82,13.89562815]
[1732565657183,13.89562815,240.89,240.81,4.1526]
[1732565657380,13.89562815,240.91,240.82,13.89562815]
[1732565657583,13.89562815,240.93,240.87,4.156]
[1732565658600,15.14092815,240.91,240.83,4.156]
[1732565659206,13.89562815,240.89,240.83,4.156]
[1732565659377,13.89562815,240.87,240.78,13.89562815]
[1732565659700,13.89562815,240.85,240.76,34.96262815]
[1732565659881,13.89562815,240.85,240.78,13.89562815]
[1732565660088,13.89562815,240.87,240.78,13.89562815]
[1732565660703,1.2455,240.86,240.78,13.89562815]
[1732565662303,15.14122815,240.85,240.78,13.89562815]
[1732565663475,30.0,240.84,240.78,13.89562815]
[1732565664711,13.89562815,240.83,240.74,13.89562815]
[1732565665012,13.89562815,240.81,240.75,20.0]
[1732565665190,13.89562815,240.79,240.7,31.64552815]
[1732565665386,13.89562815,240.76,240.7,17.7499]
[1732565665617,13.89562815,240.76,240.67,10.6639]
[1732565665618,13.89562815,240.76,240.67,13.89562815]
[1732565665915,13.89562815,240.76,240.67,18.05062815]
[1732565666680,13.89562815,240.76,240.69,13.89562815]
[1732565667208,13.89562815,240.78,240.69,13.89562815]
[1732565667510,0.12549,240.69,240.57,0.4764682]
[1732565667691,13.89562815,240.61,240.57,0.4764682]
[1732565668893,1.2467,240.63,240.58,20.0]
[1732565668894,13.89562815,240.63,240.58,20.0]
[1732565669209,13.89562815,240.67,240.58,33.89562815]
[1732565669393,13.89562815,240.65,240.58,20.0]
[1732565669905,13.89562815,240.65,240.59,20.0]
[1732565670109,13.89562815,240.65,240.58,20.0]
[1732565670279,13.89562815,240.65,240.59,20.0]
[1732565670476,13.89562815,240.63,240.59,20.0]
[1732565670683,13.89562815,240.61,240.57,0.4764682]
[1732565671006,13.89562815,240.59,240.57,0.4764682]
[1732565672214,30.0,240.58,240.57,0.4764682]
[1732565673506,15.14242815,240.61,240.57,0.4764682]
[1732565674199,13.89562815,240.59,240.57,0.4764682]
[1732565674393,1.37239,240.58,240.57,0.4764682]
[1732565674607,31.37239,240.58,240.57,0.4764682]
[1732565675181,31.49788,240.58,240.57,0.4764682]
[1732565675911,38.00598,240.58,240.57,0.4764682]
[1732565682309,71.782864,240.58,240.57,0.4764682]
[1732565684234,71.782864,240.58,240.38,30.92932815]
[1732565684235,0.12549,240.53,240.38,30.92932815]
[1732565684530,13.89562815,240.47,240.4,13.89562815]
[1732565684699,13.89562815,240.47,240.38,21.1937]
[1732565684700,13.89562815,240.49,240.42,13.89562815]
[1732565684902,13.89562815,240.47,240.4,13.89562815]
[1732565685402,30.0,240.45,240.4,13.89562815]
[1732565686398,30.0,240.45,240.42,13.89562815]
[1732565686615,30.0,240.45,240.44,13.89562815]
[1732565686915,30.0,240.45,240.4,13.89562815]
[1732565687311,30.0,240.45,240.38,30.92932815]
[1732565687525,30.0,240.45,240.38,35.08932815]
[1732565688222,31.2476,240.45,240.38,13.89562815]
[1732565689203,45.14322815,240.45,240.36,13.89562815]
[1732565689510,13.89562815,240.43,240.36,13.89562815]
[1732565689700,30.0,240.42,240.36,13.89562815]
[1732565691125,30.0,240.42,240.36,18.05592815]
[1732565691505,31.2478,240.42,240.34,13.89562815]
[1732565691706,30.0,240.42,240.38,13.89562815]
[1732565692328,30.0,240.42,240.41,8.72370053]
[1732565692828,8.72370053,240.49,240.41,8.72370053]
[1732565693002,9.97110053,240.49,240.41,8.72370053]
[1732565694130,9.97100053,240.51,240.43,8.72370053]
[1732565694328,1.2473,240.51,240.44,13.95569876]
[1732565694510,32.12999876,240.54,240.46,13.95569876]
[1732565695328,13.95569876,240.56,240.48,13.95569876]
[1732565696532,1.2471,240.55,240.48,13.95569876]
[1732565696711,30.0,240.49,240.48,13.95569876]
[1732565697030,1.2471,240.55,240.48,13.95569876]
[1732565700241,1.2469,240.59,240.48,4.1581]
[1732565700440,1.2466,240.64,240.57,13.95569876]
[1732565700613,30.0,240.58,240.57,13.95569876]
[1732565700813,30.0,240.58,240.51,33.95569876]
[1732565701018,13.95569876,240.56,240.49,13.95569876]
[1732565701739,13.95569876,240.52,240.45,20.37419876]
[1732565701939,13.95569876,240.52,240.43,33.96859876]
[1732565702137,13.95569876,240.48,240.41,13.95569876]
[1732565702446,13.95569876,240.44,240.37,13.95569876]
[1732565702943,0.12549,240.45,240.37,13.95569876]
[1732565703240,30.0,240.43,240.42,13.95569876]
[1732565703644,30.0,240.43,240.38,13.95569876]
[1732565703837,30.0,240.43,240.4,13.95569876]
[1732565704208,30.0,240.43,240.42,13.95569876]
[1732565704533,1.2471,240.55,240.45,20.0]
[1732565704736,13.95569876,240.61,240.53,13.95569876]
[1732565704931,30.0,240.54,240.53,13.95569876]
[1732565705133,15.20249876,240.61,240.53,13.95569876]
[1732565705313,15.20239876,240.63,240.55,13.95569876]
[1732565705685,0.12549,240.56,240.46,20.0]
[1732565705827,13.95569876,240.51,240.43,13.95569876]
[1732565706229,13.95569876,240.51,240.41,13.95569876]
[1732565706638,0.12549,240.5,240.41,13.95569876]
[1732565706826,0.12549,240.5,240.43,13.95569876]
[1732565707833,1.2474,240.49,240.41,13.95569876]
[1732565708138,31.2474,240.49,240.45,13.95569876]
[1732565709038,30.0,240.49,240.45,13.95569876]
[1732565709220,30.0,240.49,240.47,13.95569876]
[1732565709545,30.0,240.49,240.45,13.95569876]
[1732565709746,31.2474,240.49,240.45,13.95569876]
[1732565709951,31.2474,240.49,240.41,13.95569876]
[1732565710131,45.20309876,240.49,240.41,13.95569876]
[1732565710331,0.12549,240.46,240.39,13.95569876]
[1732565710524,13.95569876,240.45,240.35,13.95569876]
[1732565710728,30.12549,240.46,240.35,13.95569876]
[1732565710729,13.95569876,240.43,240.35,13.95569876]
[1732565710927,13.95569876,240.41,240.33,14.43216696]
[1732565711121,30.0,240.46,240.33,0.4764682]
[1732565711122,13.95569876,240.39,240.33,0.4764682]
[1732565711332,0.12549,240.4,240.33,0.4764682]
[1732565711535,0.12549,240.4,240.33,14.43216696]
[1732565711738,0.12549,240.42,240.35,13.95569876]
[1732565711939,30.0,240.38,240.35,13.95569876]
[1732565712554,30.0,240.38,240.33,14.43216696]
[1732565713228,30.0,240.38,240.33,0.4764682]
[1732565713826,31.248,240.38,240.33,0.4764682]
[1732565714152,30.0,240.38,240.35,13.95569876]
[1732565714525,30.0,240.38,240.37,13.95569876]
[1732565714737,30.0,240.38,240.37,37.73258276]
[1732565714925,1.2475,240.47,240.37,37.73258276]
[1732565715230,13.95569876,240.49,240.42,13.95569876]
[1732565715450,13.95569876,240.49,240.37,23.776884]
[1732565715451,30.0,240.43,240.4,13.95569876]
[1732565715747,30.0,240.43,240.38,13.95569876]
[1732565716120,13.95569876,240.41,240.34,13.95569876]
[1732565716317,38.85675697,240.4,240.33,0.4764682]
[1732565716545,8.73126697,240.38,240.33,0.4764682]
[1732565716921,30.12549,240.4,240.33,0.4764682]
[1732565716922,38.85675697,240.4,240.33,0.4764682]
[1732565717325,8.73126697,240.38,240.33,0.4764682]
[1732565717533,30.0,240.37,240.33,0.4764682]
[1732565718032,1.2481,240.36,240.33,0.4764682]
[1732565718550,30.0,240.35,240.33,0.4764682]
[1732565719619,8.73126697,240.34,240.33,0.4764682]
[1732565720049,39.97946697,240.34,240.33,0.4764682]
[1732565721847,40.10495697,240.34,240.33,0.4764682]
[1732565724339,40.10495697,240.34,240.12,18.73126697]
[1732565724340,20.12549,240.28,240.06,22.6225]
[1732565724532,20.12549,240.28,240.09,9.20773517]
[1732565724533,8.73126697,240.17,240.09,9.20773517]
[1732565724927,8.73126697,240.19,240.09,9.20773517]
[1732565725451,30.0,240.16,240.11,8.73126697]
[1732565728653,1.2487,240.24,240.15,8.73126697]
[1732565728833,1.2487,240.24,240.17,8.73126697]
[1732565729433,1.2487,240.24,240.15,8.73126697]
[1732565729640,8.73126697,240.23,240.15,8.73126697]
[1732565730430,1.2487,240.24,240.17,8.73126697]
[1732565730847,8.73126697,240.28,240.19,8.73126697]
[1732565731051,1.2486,240.27,240.19,8.73126697]
[1732565731555,8.73126697,240.28,240.19,8.73126697]
[1732565731856,13.46685605,240.29,240.23,8.73126697]
[1732565732068,30.0,240.24,240.23,8.73126697]
[1732565732265,12.21835605,240.29,240.23,8.73126697]
[1732565732866,13.46675605,240.29,240.23,8.73126697]
[1732565733270,8.73126697,240.28,240.21,8.73126697]
[1732565733475,12.21835605,240.29,240.22,23.776884]
[1732565733879,8.73126697,240.28,240.19,32.28266697]
[1732565734062,8.73126697,240.28,240.13,10.4106]
[1732565734063,8.73126697,240.24,240.15,8.73126697]
[1732565734252,8.73126697,240.22,240.15,8.73126697]
[1732565735567,30.0,240.21,240.14,16.4672]
[1732565735745,30.0,240.21,240.15,8.73126697]
[1732565737246,30.0,240.21,240.19,8.73126697]
[1732565738357,8.73126697,240.27,240.19,28.73126697]
[1732565738669,8.73126697,240.25,240.19,20.0]
[1732565739075,9.97996697,240.25,240.19,20.0]
[1732565739375,1.2487,240.25,240.19,20.0]
[1732565740380,12.21835605,240.29,240.22,8.73126697]
[1732565740550,30.0,240.23,240.22,23.776884]
[1732565740750,30.0,240.23,240.22,32.50815097]
[1732565740950,12.21835605,240.29,240.23,23.776884]
[1732565741256,12.21835605,240.29,240.26,28.73126697]
[1732565741467,30.0,240.27,240.26,8.73126697]
[1732565741670,30.0,240.27,240.19,10.4084]
[1732565741671,30.0,240.27,240.2,8.73126697]
[1732565741848,30.0,240.27,240.19,23.776884]
[1732565741849,38.73126697,240.27,240.19,23.776884]
[1732565742049,38.73126697,240.27,240.18,8.73126697]
[1732565743078,8.73126697,240.25,240.19,20.0]
[1732565743253,8.73126697,240.23,240.14,29.36266697]
[1732565743454,8.73126697,240.23,240.14,25.19846697]
[1732565743678,8.73126697,240.21,240.12,8.73126697]
[1732565744176,30.0,240.19,240.12,8.73126697]
[1732565745064,30.0,240.19,240.16,8.73126697]
[1732565745276,30.0,240.19,240.18,8.73126697]
[1732565746078,1.2486,240.26,240.18,8.73126697]
[1732565746288,12.21835605,240.29,240.22,8.73126697]
[1732565746454,30.0,240.23,240.19,23.776884]
[1732565746773,30.0,240.23,240.22,28.73126697]
[1732565747151,12.21835605,240.29,240.23,23.776884]
[1732565747349,12.21835605,240.29,240.25,8.73126697]
[1732565748055,12.21835605,240.29,240.23,32.50815097]
[1732565748252,12.21835605,240.29,240.24,13.97879753]
[1732565748659,13.97879753,240.28,240.18,13.97879753]
[1732565748875,13.97879753,240.28,240.16,4.1637]
[1732565748876,13.97879753,240.24,240.14,13.97879753]
[1732565749057,13.97879753,240.22,240.14,13.97879753]
[1732565750154,30.0,240.21,240.15,20.0]
[1732565750577,30.0,240.21,240.14,13.97879753]
[1732565750990,1.2489,240.21,240.14,13.97879753]
[1732565751559,13.97879753,240.22,240.15,23.776884]
[1732565751874,13.97879753,240.25,240.18,13.97879753]
[1732565752552,17.0479,240.27,240.18,13.97879753]
[1732565752553,31.02669753,240.27,240.18,13.97879753]
[1732565753366,27.44565358,240.29,240.22,13.97879753]
[1732565754061,12.21835605,240.29,240.22,13.97879753]
[1732565754479,12.21835605,240.29,240.24,13.97879753]
[1732565754687,12.21835605,240.29,240.26,13.97879753]
[1732565758490,12.21835605,240.29,240.24,13.97879753]
[1732565759182,12.21835605,240.29,240.28,13.97879753]
[1732565759410,12.21835605,240.29,240.28,37.75568153]
[1732565759411,42.21835605,240.29,240.28,37.75568153]
[1732565759603,13.97879753,240.43,240.29,23.776884]
[1732565759916,13.97879753,240.39,240.3,13.97879753]
[1732565760421,13.97879753,240.43,240.34,13.97879753]
[1732565760621,1.2478,240.42,240.34,13.97879753]
[1732565761118,1.2477,240.44,240.36,13.97879753]
[1732565761419,1.2476,240.46,240.38,13.97879753]
[1732565763409,1.2476,240.46,240.31,23.1414]
[1732565763410,13.97879753,240.43,240.34,18.13949753]
[1732565763611,13.97879753,240.43,240.35,23.776884]
[1732565763911,13.97879753,240.45,240.38,13.97879753]
[1732565764297,13.97879753,240.41,240.33,4.1608]
[1732565764514,13.97879753,240.41,240.33,23.776884]
[1732565764721,15.22659753,240.41,240.34,13.97879753]
[1732565765991,1.2478,240.41,240.34,18.13949753]
[1732565766501,1.2478,240.43,240.36,13.97879753]
[1732565766696,1.2477,240.44,240.36,18.13909753]
[1732565766917,1.2477,240.44,240.36,13.97879753]
[1732565767119,1.2477,240.44,240.36,18.13909753]
[1732565768414,1.2477,240.44,240.36,13.97879753]
[1732565768795,13.97879753,240.41,240.33,23.776884]
[1732565768996,13.97879753,240.37,240.29,13.97879753]
[1732565769308,13.97879753,240.35,240.27,13.97879753]
[1732565769515,13.97879753,240.35,240.25,18.14099753]
[1732565769930,13.97879753,240.33,240.23,18.14139753]
[1732565770111,13.97879753,240.33,240.25,13.97879753]
[1732565770298,15.22709753,240.33,240.25,13.97879753]
[1732565770497,13.97879753,240.31,240.23,13.97879753]
[1732565770721,13.97879753,240.27,240.19,13.97879753]
[1732565770912,13.97879753,240.25,240.17,13.97879753]
[1732565771128,13.97879753,240.25,240.15,13.97879753]
[1732565771309,13.97879753,240.25,240.17,13.97879753]
[1732565771629,13.97879753,240.25,240.15,13.97879753]
[1732565771796,13.97879753,240.19,240.11,13.97879753]
[1732565772104,13.97879753,240.25,240.15,13.97879753]
[1732565772305,13.97879753,240.23,240.13,13.97879753]
[1732565772610,13.97879753,240.21,240.13,13.97879753]
[1732565773011,13.97879753,240.21,240.12,4.1644]
[1732565773012,13.97879753,240.19,240.11,13.97879753]
[1732565773321,13.92879753,240.19,240.11,13.97879753]
[1732565774126,13.97879753,240.15,240.09,0.4764682]
[1732565774497,13.97879753,240.13,240.09,0.4764682]
[1732565775032,3.1226,240.19,240.09,0.4764682]
[1732565775033,13.97879753,240.11,240.09,0.4764682]
[1732565775327,13.97879753,240.17,240.09,0.4764682]
[1732565775501,13.97879753,240.17,240.09,14.45526573]
[1732565775701,13.97879753,240.19,240.11,13.97879753]
[1732565775902,13.97879753,240.21,240.13,13.97879753]
[1732565776127,15.22769753,240.21,240.13,13.97879753]
[1732565776514,15.22769753,240.21,240.11,18.14349753]
[1732565776821,15.22769753,240.21,240.12,23.776884]
[1732565777808,13.97879753,240.19,240.12,23.776884]
[1732565778498,13.97879753,240.19,240.1,23.776884]
[1732565778828,13.97879753,240.21,240.12,23.776884]
[1732565779703,15.22769753,240.21,240.12,27.941384]
[1732565780413,13.97879753,240.17,240.12,20.0]
[1732565780626,13.97879753,240.17,240.1,23.776884]
[1732565781333,13.97879753,240.17,240.09,18.62026573]
[1732565781334,13.97879753,240.15,240.09,0.4764682]
[1732565782430,13.97879753,240.17,240.09,14.45526573]
[1732565782603,15.22789753,240.17,240.09,18.62026573]
[1732565782803,15.22789753,240.17,240.09,24.2533522]
[1732565783723,13.97879753,240.15,240.09,24.2533522]
[1732565784028,13.97879753,240.11,240.09,0.4764682]
[1732565784412,15.22819753,240.11,240.09,0.4764682]
[1732565786236,13.97879753,240.11,240.09,0.4764682]
[1732565786413,15.22819753,240.11,240.09,0.4764682]
[1732565792438,8.75310057,240.1,240.09,0.4764682]
[1732565792606,10.00250057,240.1,240.09,0.4764682]
[1732565793911,10.12799057,240.1,240.09,0.4764682]
[1732565795744,10.00250057,240.1,240.09,0.4764682]
[1732565798839,10.12799057,240.1,240.09,0.4764682]
[1732565805064,10.00250057,240.1,240.09,0.4764682]
[1732565807652,1.2494,240.12,240.09,0.4764682]
[1732565808054,8.75310057,240.11,240.09,0.4764682]